[Event "Titled Tuesday Blitz November 14 Early 2023"]
[White "Ruge, Edison"]
[Black "Bettalli, Francesco"]
[WhiteFideId "4401000"]
[BlackFideId "2816453"]
[WhiteElo "2321"]
[BlackElo "2537"]
[Result "1-0"]
[Round "5"]
[TimeControl "180+1"]
[Date "2023.11.14"]
[WhiteClock "0:00:54"]
[BlackClock "0:00:04"]
[Board "131"]

1. e4 {[%clk 0:03:00]}  g6 {[%clk 0:00:18]} 2. d4 {[%clk 0:02:57]}  Bg7 {[%clk 0:00:19]} 3. Nc3 {[%clk 0:02:57]}  c6 {[%clk 0:00:20]} 4. Be2 {[%clk 0:02:57]}  d5 {[%clk 0:00:20]} 5. e5 {[%clk 0:02:55]}  h5 {[%clk 0:00:21]} 6. h3 {[%clk 0:02:54]}  Nh6 {[%clk 0:00:21]} 7. Nf3 {[%clk 0:02:52]}  h4 {[%clk 0:00:20]} 8. Nxh4 {[%clk 0:02:48]}  Nf5 {[%clk 0:00:20]} 9. Nxf5 {[%clk 0:02:48]}  Bxf5 {[%clk 0:00:21]} 10. Be3 {[%clk 0:02:47]}  Nd7 {[%clk 0:00:19]} 11. g4 {[%clk 0:02:47]}  Be4 {[%clk 0:00:17]} 12. f3 {[%clk 0:02:43]}  Bxc2 {[%clk 0:00:17]} 13. Qxc2 {[%clk 0:02:43]}  Qa5 {[%clk 0:00:15]} 14. a3 {[%clk 0:02:37]}  O-O-O {[%clk 0:00:15]} 15. b4 {[%clk 0:02:37]}  Qc7 {[%clk 0:00:15]} 16. Kf2 {[%clk 0:02:34]}  Nxe5 {[%clk 0:00:15]} 17. dxe5 {[%clk 0:02:32]}  d4 {[%clk 0:00:16]} 18. Bf4 {[%clk 0:02:25]}  dxc3 {[%clk 0:00:14]} 19. Qxc3 {[%clk 0:02:25]}  g5 {[%clk 0:00:14]} 20. Bg3 {[%clk 0:02:24]}  Qb6+ {[%clk 0:00:12]} 21. Kg2 {[%clk 0:02:23]}  Rd7 {[%clk 0:00:04]} 22. Rad1 {[%clk 0:02:23]}  Rhd8 {[%clk 0:00:04]} 23. Rxd7 {[%clk 0:02:23]}  Rxd7 {[%clk 0:00:05]} 24. Rd1 {[%clk 0:02:18]}  Rxd1 {[%clk 0:00:06]} 25. Bxd1 {[%clk 0:02:18]}  Qa6 {[%clk 0:00:07]} 26. Qd2 {[%clk 0:02:09]}  f6 {[%clk 0:00:04]} 27. Qe3 {[%clk 0:02:05]}  fxe5 {[%clk 0:00:01]} 28. Be2 {[%clk 0:02:05]}  Qa4 {[%clk 0:00:01]} 29. Bxe5 {[%clk 0:02:04]}  Bxe5 {[%clk 0:00:02]} 30. Qxe5 {[%clk 0:02:03]}  Qxa3 {[%clk 0:00:03]} 31. Qxe7 {[%clk 0:02:02]}  Qb2 {[%clk 0:00:02]} 32. Kf2 {[%clk 0:01:53]}  Qd4+ {[%clk 0:00:02]} 33. Qe3 {[%clk 0:01:50]}  Qb2 {[%clk 0:00:03]} 34. Qxg5 {[%clk 0:01:45]}  Qxb4 {[%clk 0:00:03]} 35. h4 {[%clk 0:01:44]}  a5 {[%clk 0:00:02]} 36. h5 {[%clk 0:01:44]}  a4 {[%clk 0:00:03]} 37. h6 {[%clk 0:01:43]}  a3 {[%clk 0:00:03]} 38. Qg7 {[%clk 0:01:41]}  Qc5+ {[%clk 0:00:03]} 39. Kg2 {[%clk 0:01:41]}  Qc2 {[%clk 0:00:03]} 40. Kf2 {[%clk 0:01:27]}  Qc5+ {[%clk 0:00:03]} 41. Kg3 {[%clk 0:01:26]}  Qg1+ {[%clk 0:00:03]} 42. Kf4 {[%clk 0:01:25]}  Qc1+ {[%clk 0:00:03]} 43. Kf5 {[%clk 0:01:24]}  Qb1+ {[%clk 0:00:03]} 44. Kf6 {[%clk 0:01:22]}  Qb2+ {[%clk 0:00:04]} 45. Kg6 {[%clk 0:01:19]}  Qc2+ {[%clk 0:00:03]} 46. Kh5 {[%clk 0:01:18]}  Qxe2 {[%clk 0:00:03]} 47. h7 {[%clk 0:01:18]}  Qh2+ {[%clk 0:00:04]} 48. Kg6 {[%clk 0:01:16]}  Qc2+ {[%clk 0:00:05]} 49. Kf7 {[%clk 0:01:15]}  Qc4+ {[%clk 0:00:05]} 50. Kf8 {[%clk 0:01:15]}  Qc5+ {[%clk 0:00:05]} 51. Qe7 {[%clk 0:01:14]}  Qc3 {[%clk 0:00:02]} 52. Kg8 {[%clk 0:01:05]}  a2 {[%clk 0:00:02]} 53. Qe6+ {[%clk 0:01:01]}  Kc7 {[%clk 0:00:02]} 54. Qxa2 {[%clk 0:01:01]}  Qxf3 {[%clk 0:00:02]} 55. h8=Q {[%clk 0:00:59]}  Qxg4+ {[%clk 0:00:02]} 56. Qg7+ {[%clk 0:00:59]}  Qxg7+ {[%clk 0:00:03]} 57. Kxg7 {[%clk 0:01:00]}  b5 {[%clk 0:00:03]} 58. Kf6 {[%clk 0:00:58]}  Kb6 {[%clk 0:00:04]} 59. Ke5 {[%clk 0:00:58]}  Kc5 {[%clk 0:00:05]} 60. Qc2+ {[%clk 0:00:55]}  Kb4 {[%clk 0:00:04]} 61. Qxc6 {[%clk 0:00:54]} 1-0


[Site "https://www.chess.com"]

[Event "Titled Tuesday Blitz November 14 Early 2023"]
[White "Senft, Sean"]
[Black "vishwa_vijeta"]
[WhiteFideId "2044960"]
[WhiteElo "2296"]
[BlackElo "2533"]
[Result "0-1"]
[Round "5"]
[TimeControl "180+1"]
[Date "2023.11.14"]
[WhiteClock "0:02:12"]
[BlackClock "0:01:14"]
[Board "133"]

1. d4 {[%clk 0:03:00]}  Nf6 {[%clk 0:02:50]} 2. c4 {[%clk 0:03:00]}  g6 {[%clk 0:02:50]} 3. Nc3 {[%clk 0:03:01]}  d5 {[%clk 0:02:50]} 4. Bg5 {[%clk 0:03:01]}  Ne4 {[%clk 0:02:48]} 5. Bh4 {[%clk 0:03:01]}  Nxc3 {[%clk 0:02:44]} 6. bxc3 {[%clk 0:03:02]}  dxc4 {[%clk 0:02:44]} 7. e3 {[%clk 0:03:03]}  Be6 {[%clk 0:02:43]} 8. Nf3 {[%clk 0:03:03]}  Bg7 {[%clk 0:02:40]} 9. Qb1 {[%clk 0:03:03]}  b6 {[%clk 0:02:26]} 10. Ng5 {[%clk 0:03:02]}  Bd5 {[%clk 0:02:25]} 11. e4 {[%clk 0:03:02]}  h6 {[%clk 0:02:16]} 12. Nh3 {[%clk 0:03:03]}  Bb7 {[%clk 0:02:12]} 13. Bxc4 {[%clk 0:03:01]}  c5 {[%clk 0:02:10]} 14. Bb5+ {[%clk 0:02:59]}  Nd7 {[%clk 0:02:06]} 15. e5 {[%clk 0:02:48]}  Bxg2 {[%clk 0:02:00]} 16. Rg1 {[%clk 0:02:39]}  Bxh3 {[%clk 0:01:58]} 17. Rxg6 {[%clk 0:02:39]}  fxg6 {[%clk 0:01:45]} 18. Qxg6+ {[%clk 0:02:38]}  Kf8 {[%clk 0:01:45]} 19. e6 {[%clk 0:02:38]}  Bxe6 {[%clk 0:01:42]} 20. Qxe6 {[%clk 0:02:36]}  Bf6 {[%clk 0:01:26]} 21. Bc4 {[%clk 0:02:32]}  Qe8 {[%clk 0:01:20]} 22. Bg3 {[%clk 0:02:31]}  cxd4 {[%clk 0:01:17]} 23. Bb5 {[%clk 0:02:23]}  Nc5 {[%clk 0:01:14]} 24. Qc4 {[%clk 0:02:12]}  Qf7 {[%clk 0:01:14]} 0-1


[Site "https://www.chess.com"]

[Event "Titled Tuesday Blitz November 14 Early 2023"]
[White "Tifferet, Shaked"]
[Black "Liu, Leonardo"]
[WhiteFideId "2811529"]
[BlackFideId "30965780"]
[WhiteElo "2528"]
[BlackElo "2266"]
[Result "1-0"]
[Round "5"]
[TimeControl "180+1"]
[Date "2023.11.14"]
[WhiteClock "0:01:43"]
[BlackClock "0:02:07"]
[Board "135"]

1. e4 {[%clk 0:03:00]}  c5 {[%clk 0:02:51]} 2. Nf3 {[%clk 0:03:00]}  g6 {[%clk 0:02:51]} 3. Nc3 {[%clk 0:02:59]}  Bg7 {[%clk 0:02:52]} 4. h4 {[%clk 0:03:00]}  Nc6 {[%clk 0:02:49]} 5. h5 {[%clk 0:03:00]}  Nd4 {[%clk 0:02:48]} 6. Bc4 {[%clk 0:02:57]}  e6 {[%clk 0:02:48]} 7. d3 {[%clk 0:02:54]}  Ne7 {[%clk 0:02:41]} 8. Kf1 {[%clk 0:02:42]}  d5 {[%clk 0:02:37]} 9. exd5 {[%clk 0:02:40]}  exd5 {[%clk 0:02:38]} 10. Bb3 {[%clk 0:02:29]}  Bg4 {[%clk 0:02:36]} 11. Bg5 {[%clk 0:02:23]}  f6 {[%clk 0:02:32]} 12. h6 {[%clk 0:02:19]}  fxg5 {[%clk 0:02:26]} 13. hxg7 {[%clk 0:02:19]}  Rg8 {[%clk 0:02:27]} 14. Ba4+ {[%clk 0:02:12]}  Nec6 {[%clk 0:02:25]} 15. Qe1+ {[%clk 0:02:07]}  Qe7 {[%clk 0:02:20]} 16. Nxd5 {[%clk 0:01:59]}  Qxe1+ {[%clk 0:02:15]} 17. Rxe1+ {[%clk 0:02:00]}  Kf7 {[%clk 0:02:16]} 18. Nxg5+ {[%clk 0:01:42]}  Kxg7 {[%clk 0:02:09]} 19. Rxh7+ {[%clk 0:01:42]}  Kf8 {[%clk 0:02:07]} 20. Rf7# {[%clk 0:01:43]} 1-0


[Site "https://www.chess.com"]

[Event "Titled Tuesday Blitz November 14 Early 2023"]
[White "TimGrutter03"]
[Black "Valy02chess"]
[WhiteElo "2524"]
[BlackElo "2226"]
[Result "1-0"]
[Round "5"]
[TimeControl "180+1"]
[Date "2023.11.14"]
[WhiteClock "0:00:05"]
[BlackClock "0:00:00"]
[Board "137"]

1. e4 {[%clk 0:03:00]}  c6 {[%clk 0:02:51]} 2. Nc3 {[%clk 0:02:55]}  d5 {[%clk 0:02:50]} 3. Qf3 {[%clk 0:02:55]}  dxe4 {[%clk 0:02:40]} 4. Nxe4 {[%clk 0:02:54]}  Nf6 {[%clk 0:02:40]} 5. Bc4 {[%clk 0:02:49]}  Qd4 {[%clk 0:02:24]} 6. Nxf6+ {[%clk 0:02:36]}  exf6 {[%clk 0:02:24]} 7. d3 {[%clk 0:02:22]}  Bb4+ {[%clk 0:02:12]} 8. Kf1 {[%clk 0:01:56]}  O-O {[%clk 0:01:57]} 9. c3 {[%clk 0:01:46]}  Bxc3 {[%clk 0:01:57]} 10. Ne2 {[%clk 0:01:45]}  Qh4 {[%clk 0:01:10]} 11. bxc3 {[%clk 0:01:30]}  Bg4 {[%clk 0:01:08]} 12. Qg3 {[%clk 0:01:26]}  Bxe2+ {[%clk 0:01:07]} 13. Kxe2 {[%clk 0:01:26]}  Re8+ {[%clk 0:01:07]} 14. Be3 {[%clk 0:01:24]}  Qh5+ {[%clk 0:01:06]} 15. Kd2 {[%clk 0:01:05]}  Nd7 {[%clk 0:01:05]} 16. Qh3 {[%clk 0:00:57]}  Qxh3 {[%clk 0:00:42]} 17. gxh3 {[%clk 0:00:58]}  Ne5 {[%clk 0:00:42]} 18. f4 {[%clk 0:00:30]}  Nf3+ {[%clk 0:00:28]} 19. Ke2 {[%clk 0:00:24]}  Nh4 {[%clk 0:00:28]} 20. Kf2 {[%clk 0:00:20]}  Nf5 {[%clk 0:00:22]} 21. Rhe1 {[%clk 0:00:19]}  b5 {[%clk 0:00:20]} 22. Bb3 {[%clk 0:00:19]}  Red8 {[%clk 0:00:17]} 23. Rad1 {[%clk 0:00:17]}  a5 {[%clk 0:00:17]} 24. a4 {[%clk 0:00:16]}  b4 {[%clk 0:00:12]} 25. cxb4 {[%clk 0:00:17]}  axb4 {[%clk 0:00:12]} 26. Bb6 {[%clk 0:00:18]}  Rdb8 {[%clk 0:00:10]} 27. a5 {[%clk 0:00:18]}  c5 {[%clk 0:00:09]} 28. Bd5 {[%clk 0:00:15]}  Ra6 {[%clk 0:00:07]} 29. Bc4 {[%clk 0:00:14]}  Raa8 {[%clk 0:00:06]} 30. Bc7 {[%clk 0:00:09]}  Rc8 {[%clk 0:00:06]} 31. Bb6 {[%clk 0:00:08]}  Nd4 {[%clk 0:00:05]} 32. Re7 {[%clk 0:00:07]}  b3 {[%clk 0:00:04]} 33. Rxf7 {[%clk 0:00:05]}  Kh8 {[%clk 0:00:00]} 34. Rb1 {[%clk 0:00:05]} 1-0


[Site "https://www.chess.com"]

[Event "Titled Tuesday Blitz November 14 Early 2023"]
[White "Panchenko, Dmitry"]
[Black "Kanyamarala, Trisha"]
[WhiteFideId "4169158"]
[BlackFideId "45004722"]
[WhiteElo "2736"]
[BlackElo "2515"]
[Result "1-0"]
[Round "5"]
[TimeControl "180+1"]
[Date "2023.11.14"]
[WhiteClock "0:00:38"]
[BlackClock "0:00:08"]
[Board "140"]

1. e4 {[%clk 0:02:58]}  c5 {[%clk 0:02:58]} 2. Nf3 {[%clk 0:02:58]}  d6 {[%clk 0:02:57]} 3. Bb5+ {[%clk 0:02:58]}  Bd7 {[%clk 0:02:55]} 4. Bxd7+ {[%clk 0:02:57]}  Nxd7 {[%clk 0:02:54]} 5. O-O {[%clk 0:02:49]}  Ngf6 {[%clk 0:02:51]} 6. Qe2 {[%clk 0:02:48]}  e6 {[%clk 0:02:46]} 7. c3 {[%clk 0:02:45]}  Be7 {[%clk 0:02:46]} 8. d4 {[%clk 0:02:45]}  O-O {[%clk 0:02:46]} 9. e5 {[%clk 0:02:36]}  Nd5 {[%clk 0:02:40]} 10. c4 {[%clk 0:02:31]}  N5b6 {[%clk 0:02:39]} 11. dxc5 {[%clk 0:02:28]}  dxc5 {[%clk 0:02:31]} 12. Rd1 {[%clk 0:02:27]}  Qc7 {[%clk 0:02:28]} 13. Nc3 {[%clk 0:02:25]}  a6 {[%clk 0:02:24]} 14. Bf4 {[%clk 0:02:23]}  Nc8 {[%clk 0:02:17]} 15. Rd2 {[%clk 0:02:14]}  Na7 {[%clk 0:02:15]} 16. Rad1 {[%clk 0:02:14]}  Rfd8 {[%clk 0:02:09]} 17. h4 {[%clk 0:02:02]}  Nc6 {[%clk 0:02:05]} 18. h5 {[%clk 0:01:58]}  h6 {[%clk 0:02:02]} 19. Qe3 {[%clk 0:01:52]}  Nb6 {[%clk 0:01:52]} 20. b3 {[%clk 0:01:50]}  Rd7 {[%clk 0:01:24]} 21. Rxd7 {[%clk 0:01:35]}  Nxd7 {[%clk 0:01:25]} 22. Ne4 {[%clk 0:01:31]}  Ndxe5 {[%clk 0:00:49]} 23. Nxe5 {[%clk 0:01:30]}  Nxe5 {[%clk 0:00:49]} 24. Qg3 {[%clk 0:01:30]}  f6 {[%clk 0:00:46]} 25. Bxh6 {[%clk 0:01:29]}  Bf8 {[%clk 0:00:31]} 26. Nxf6+ {[%clk 0:01:20]}  Kh8 {[%clk 0:00:31]} 27. Nd7 {[%clk 0:00:52]}  gxh6 {[%clk 0:00:18]} 28. Nxe5 {[%clk 0:00:51]}  Qg7 {[%clk 0:00:14]} 29. Qf4 {[%clk 0:00:45]}  Be7 {[%clk 0:00:13]} 30. Ng6+ {[%clk 0:00:45]}  Kg8 {[%clk 0:00:13]} 31. Rd7 {[%clk 0:00:44]}  Re8 {[%clk 0:00:12]} 32. Nxe7+ {[%clk 0:00:37]}  Rxe7 {[%clk 0:00:11]} 33. Rd8+ {[%clk 0:00:37]}  Kh7 {[%clk 0:00:08]} 34. Qe4+ {[%clk 0:00:38]} 1-0


[Site "https://www.chess.com"]

[Event "Titled Tuesday Blitz November 14 Early 2023"]
[White "Larino Nieto, David"]
[Black "MFatigue"]
[WhiteFideId "2256444"]
[WhiteElo "2614"]
[BlackElo "2480"]
[Result "1-0"]
[Round "5"]
[TimeControl "180+1"]
[Date "2023.11.14"]
[WhiteClock "0:01:51"]
[BlackClock "0:00:31"]
[Board "142"]

1. a3 {[%clk 0:03:00]}  g6 {[%clk 0:02:43]} 2. b3 {[%clk 0:03:01]}  Bg7 {[%clk 0:02:44]} 3. c3 {[%clk 0:03:02]}  Nc6 {[%clk 0:02:43]} 4. d3 {[%clk 0:03:03]}  e5 {[%clk 0:02:44]} 5. e3 {[%clk 0:03:04]}  f5 {[%clk 0:02:44]} 6. Ra2 {[%clk 0:03:04]}  d6 {[%clk 0:02:45]} 7. h3 {[%clk 0:03:05]}  Nf6 {[%clk 0:02:45]} 8. f3 {[%clk 0:03:04]}  O-O {[%clk 0:02:46]} 9. g4 {[%clk 0:03:04]}  Nd5 {[%clk 0:02:27]} 10. c4 {[%clk 0:02:39]}  Qh4+ {[%clk 0:02:19]} 11. Rf2 {[%clk 0:02:38]}  Nb6 {[%clk 0:02:00]} 12. Bg2 {[%clk 0:02:32]}  f4 {[%clk 0:01:13]} 13. Ne2 {[%clk 0:02:32]}  fxe3 {[%clk 0:01:10]} 14. Bxe3 {[%clk 0:02:33]}  Nd4 {[%clk 0:01:10]} 15. O-O {[%clk 0:02:27]}  Be6 {[%clk 0:01:07]} 16. f4 {[%clk 0:02:25]}  c6 {[%clk 0:01:05]} 17. Nxd4 {[%clk 0:02:15]}  exd4 {[%clk 0:01:04]} 18. Bc1 {[%clk 0:02:16]}  h5 {[%clk 0:00:45]} 19. f5 {[%clk 0:02:14]}  gxf5 {[%clk 0:00:44]} 20. gxf5 {[%clk 0:02:14]}  Bd7 {[%clk 0:00:42]} 21. Nd2 {[%clk 0:02:09]}  Qg3 {[%clk 0:00:37]} 22. Ne4 {[%clk 0:02:04]}  Qe5 {[%clk 0:00:31]} 23. f6 {[%clk 0:01:51]} 1-0


[Site "https://www.chess.com"]

[Event "Titled Tuesday Blitz November 14 Early 2023"]
[White "Friedland, Moshe"]
[Black "Silva Lucena, Cristian"]
[WhiteFideId "2812843"]
[BlackFideId "2232588"]
[WhiteElo "2414"]
[BlackElo "2541"]
[Result "0-1"]
[Round "5"]
[TimeControl "180+1"]
[Date "2023.11.14"]
[WhiteClock "0:01:30"]
[BlackClock "0:01:36"]
[Board "145"]

1. e4 {[%clk 0:03:00]}  c5 {[%clk 0:02:58]} 2. Nf3 {[%clk 0:02:59]}  d6 {[%clk 0:02:58]} 3. d4 {[%clk 0:02:59]}  cxd4 {[%clk 0:02:59]} 4. Nxd4 {[%clk 0:02:59]}  Nf6 {[%clk 0:03:00]} 5. Nc3 {[%clk 0:02:59]}  a6 {[%clk 0:03:00]} 6. g3 {[%clk 0:02:58]}  e6 {[%clk 0:02:59]} 7. Bg2 {[%clk 0:02:57]}  Be7 {[%clk 0:03:00]} 8. O-O {[%clk 0:02:57]}  O-O {[%clk 0:03:00]} 9. f4 {[%clk 0:02:57]}  Nc6 {[%clk 0:02:58]} 10. Kh1 {[%clk 0:02:54]}  e5 {[%clk 0:02:46]} 11. Nxc6 {[%clk 0:02:41]}  bxc6 {[%clk 0:02:46]} 12. Na4 {[%clk 0:02:42]}  exf4 {[%clk 0:02:23]} 13. gxf4 {[%clk 0:02:37]}  Bg4 {[%clk 0:02:18]} 14. Qd3 {[%clk 0:02:33]}  d5 {[%clk 0:02:11]} 15. e5 {[%clk 0:02:29]}  Ne4 {[%clk 0:02:12]} 16. Bxe4 {[%clk 0:02:18]}  dxe4 {[%clk 0:02:11]} 17. Qxe4 {[%clk 0:02:18]}  Be6 {[%clk 0:02:01]} 18. c4 {[%clk 0:02:17]}  f5 {[%clk 0:01:58]} 19. Qe2 {[%clk 0:02:03]}  Qd4 {[%clk 0:01:47]} 20. Rd1 {[%clk 0:01:52]}  Qxc4 {[%clk 0:01:45]} 21. Qxc4 {[%clk 0:01:51]}  Bxc4 {[%clk 0:01:46]} 22. Nb6 {[%clk 0:01:52]}  Be2 {[%clk 0:01:40]} 23. Rd7 {[%clk 0:01:30]}  Bc5 {[%clk 0:01:36]} 0-1


[Site "https://www.chess.com"]

[Event "Titled Tuesday Blitz November 14 Early 2023"]
[White "Kornyukov, Alexey"]
[Black "Kovacsy, Barnabas"]
[WhiteFideId "4150457"]
[BlackFideId "769290"]
[WhiteElo "2348"]
[BlackElo "2519"]
[Result "0-1"]
[Round "5"]
[TimeControl "180+1"]
[Date "2023.11.14"]
[WhiteClock "0:00:03"]
[BlackClock "0:00:36"]
[Board "150"]

1. e4 {[%clk 0:03:00]}  c5 {[%clk 0:03:00]} 2. Nf3 {[%clk 0:02:56]}  e6 {[%clk 0:03:00]} 3. c3 {[%clk 0:02:56]}  d5 {[%clk 0:02:57]} 4. exd5 {[%clk 0:02:56]}  Qxd5 {[%clk 0:02:57]} 5. d4 {[%clk 0:02:55]}  Nf6 {[%clk 0:02:56]} 6. Be2 {[%clk 0:02:54]}  Nc6 {[%clk 0:02:51]} 7. Be3 {[%clk 0:02:54]}  cxd4 {[%clk 0:02:50]} 8. cxd4 {[%clk 0:02:53]}  Be7 {[%clk 0:02:50]} 9. Nc3 {[%clk 0:02:52]}  Qd8 {[%clk 0:02:45]} 10. O-O {[%clk 0:02:51]}  O-O {[%clk 0:02:46]} 11. Rc1 {[%clk 0:02:37]}  Bd7 {[%clk 0:02:31]} 12. Ne5 {[%clk 0:02:36]}  Rc8 {[%clk 0:02:24]} 13. Nxd7 {[%clk 0:02:19]}  Qxd7 {[%clk 0:02:24]} 14. Bf3 {[%clk 0:02:18]}  Nb4 {[%clk 0:02:20]} 15. a3 {[%clk 0:02:10]}  Nbd5 {[%clk 0:02:20]} 16. Nxd5 {[%clk 0:02:11]}  Nxd5 {[%clk 0:02:20]} 17. Qb3 {[%clk 0:01:57]}  a6 {[%clk 0:02:12]} 18. Bxd5 {[%clk 0:01:47]}  Qxd5 {[%clk 0:02:00]} 19. Qxd5 {[%clk 0:01:45]}  exd5 {[%clk 0:02:01]} 20. Rxc8 {[%clk 0:01:45]}  Rxc8 {[%clk 0:02:00]} 21. Rc1 {[%clk 0:01:44]}  Rxc1+ {[%clk 0:01:59]} 22. Bxc1 {[%clk 0:01:43]}  Bf6 {[%clk 0:01:59]} 23. Be3 {[%clk 0:01:43]}  Kf8 {[%clk 0:02:00]} 24. Kf1 {[%clk 0:01:43]}  Ke7 {[%clk 0:02:00]} 25. Ke2 {[%clk 0:01:43]}  Kd6 {[%clk 0:02:01]} 26. Kd3 {[%clk 0:01:44]}  Be7 {[%clk 0:01:56]} 27. Bd2 {[%clk 0:01:43]}  Ke6 {[%clk 0:01:53]} 28. f3 {[%clk 0:01:40]}  f5 {[%clk 0:01:52]} 29. g3 {[%clk 0:01:38]}  Bd6 {[%clk 0:01:51]} 30. f4 {[%clk 0:01:37]}  Kd7 {[%clk 0:01:44]} 31. b4 {[%clk 0:01:37]}  Kc6 {[%clk 0:01:42]} 32. a4 {[%clk 0:01:33]}  b5 {[%clk 0:01:42]} 33. a5 {[%clk 0:01:30]}  Kd7 {[%clk 0:01:42]} 34. Bc3 {[%clk 0:01:29]}  Ke6 {[%clk 0:01:42]} 35. Bd2 {[%clk 0:01:29]}  Kf7 {[%clk 0:01:42]} 36. Be1 {[%clk 0:01:27]}  Kg6 {[%clk 0:01:41]} 37. Bd2 {[%clk 0:01:26]}  Kh5 {[%clk 0:01:41]} 38. h3 {[%clk 0:01:25]}  h6 {[%clk 0:01:40]} 39. Ke2 {[%clk 0:01:22]}  g5 {[%clk 0:01:40]} 40. fxg5 {[%clk 0:01:21]}  hxg5 {[%clk 0:01:40]} 41. Kf3 {[%clk 0:01:22]}  g4+ {[%clk 0:01:33]} 42. Kg2 {[%clk 0:01:06]}  Be7 {[%clk 0:01:17]} 43. h4 {[%clk 0:01:01]}  Bd6 {[%clk 0:01:17]} 44. Kf2 {[%clk 0:00:57]}  f4 {[%clk 0:01:12]} 45. gxf4 {[%clk 0:00:39]}  Kxh4 {[%clk 0:01:11]} 46. Kg2 {[%clk 0:00:39]}  g3 {[%clk 0:01:10]} 47. f5 {[%clk 0:00:22]}  Be7 {[%clk 0:01:06]} 48. Be1 {[%clk 0:00:21]}  Kg4 {[%clk 0:01:05]} 49. Bxg3 {[%clk 0:00:20]}  Kxf5 {[%clk 0:01:05]} 50. Kf3 {[%clk 0:00:20]}  Bxb4 {[%clk 0:01:06]} 51. Bc7 {[%clk 0:00:20]}  Bd2 {[%clk 0:00:55]} 52. Ke2 {[%clk 0:00:19]}  Bf4 {[%clk 0:00:53]} 53. Bb6 {[%clk 0:00:16]}  Ke4 {[%clk 0:00:53]} 54. Bc5 {[%clk 0:00:15]}  Be3 {[%clk 0:00:52]} 55. Bb6 {[%clk 0:00:12]}  Bxd4 {[%clk 0:00:53]} 56. Kd2 {[%clk 0:00:13]}  Be5 {[%clk 0:00:50]} 57. Kc2 {[%clk 0:00:13]}  d4 {[%clk 0:00:48]} 58. Kd2 {[%clk 0:00:14]}  d3 {[%clk 0:00:48]} 59. Be3 {[%clk 0:00:13]}  Bd6 {[%clk 0:00:45]} 60. Bb6 {[%clk 0:00:12]}  Bb4+ {[%clk 0:00:44]} 61. Kd1 {[%clk 0:00:13]}  Bc3 {[%clk 0:00:44]} 62. Bc5 {[%clk 0:00:13]}  Bxa5 {[%clk 0:00:44]} 63. Ba3 {[%clk 0:00:12]}  b4 {[%clk 0:00:44]} 64. Bb2 {[%clk 0:00:13]}  b3 {[%clk 0:00:44]} 65. Bf6 {[%clk 0:00:12]}  Bb4 {[%clk 0:00:44]} 66. Bb2 {[%clk 0:00:12]}  a5 {[%clk 0:00:44]} 67. Bf6 {[%clk 0:00:13]}  a4 {[%clk 0:00:45]} 68. Bb2 {[%clk 0:00:14]}  a3 {[%clk 0:00:46]} 69. Bc1 {[%clk 0:00:10]}  Kd4 {[%clk 0:00:41]} 70. Bb2+ {[%clk 0:00:10]}  Kc4 {[%clk 0:00:41]} 71. Bc1 {[%clk 0:00:07]}  Bc5 {[%clk 0:00:42]} 72. Bb2 {[%clk 0:00:07]}  axb2 {[%clk 0:00:41]} 73. Kd2 {[%clk 0:00:07]}  Bd4 {[%clk 0:00:36]} 74. Kd1 {[%clk 0:00:03]}  Be3 {[%clk 0:00:36]} 0-1


[Site "https://www.chess.com"]

[Event "Titled Tuesday Blitz November 14 Early 2023"]
[White "patzersame"]
[Black "HeroRubiksCube"]
[WhiteElo "2334"]
[BlackElo "2516"]
[Result "0-1"]
[Round "5"]
[TimeControl "180+1"]
[Date "2023.11.14"]
[WhiteClock "0:00:02"]
[BlackClock "0:00:13"]
[Board "151"]

1. e4 {[%clk 0:03:00]}  d5 {[%clk 0:02:59]} 2. exd5 {[%clk 0:02:58]}  Nf6 {[%clk 0:02:59]} 3. d4 {[%clk 0:02:58]}  Bg4 {[%clk 0:02:59]} 4. Be2 {[%clk 0:02:57]}  Bxe2 {[%clk 0:02:59]} 5. Nxe2 {[%clk 0:02:57]}  Qxd5 {[%clk 0:02:59]} 6. O-O {[%clk 0:02:57]}  g6 {[%clk 0:02:59]} 7. c4 {[%clk 0:02:57]}  Qd8 {[%clk 0:02:59]} 8. Nbc3 {[%clk 0:02:56]}  Bg7 {[%clk 0:02:59]} 9. Bf4 {[%clk 0:02:51]}  O-O {[%clk 0:03:00]} 10. Qd2 {[%clk 0:02:48]}  Nbd7 {[%clk 0:02:59]} 11. Rfd1 {[%clk 0:02:47]}  e6 {[%clk 0:03:00]} 12. Rac1 {[%clk 0:02:45]}  c6 {[%clk 0:03:00]} 13. Bh6 {[%clk 0:02:39]}  Qa5 {[%clk 0:02:58]} 14. a3 {[%clk 0:02:27]}  Qh5 {[%clk 0:02:42]} 15. Bxg7 {[%clk 0:02:27]}  Kxg7 {[%clk 0:02:42]} 16. Ng3 {[%clk 0:02:24]}  Qa5 {[%clk 0:02:35]} 17. h3 {[%clk 0:02:23]}  c5 {[%clk 0:02:31]} 18. d5 {[%clk 0:02:19]}  exd5 {[%clk 0:02:29]} 19. Nxd5 {[%clk 0:02:09]}  Qxd2 {[%clk 0:02:29]} 20. Rxd2 {[%clk 0:02:10]}  h5 {[%clk 0:02:11]} 21. Rcd1 {[%clk 0:02:04]}  Rae8 {[%clk 0:02:01]} 22. Nxf6 {[%clk 0:01:49]}  Nxf6 {[%clk 0:02:00]} 23. Nf1 {[%clk 0:01:37]}  Re4 {[%clk 0:01:47]} 24. Ne3 {[%clk 0:01:31]}  Rfe8 {[%clk 0:01:47]} 25. b4 {[%clk 0:01:28]}  b6 {[%clk 0:01:39]} 26. Rd6 {[%clk 0:01:21]}  R8e6 {[%clk 0:01:22]} 27. b5 {[%clk 0:01:20]}  Rxd6 {[%clk 0:01:17]} 28. Rxd6 {[%clk 0:01:20]}  Rd4 {[%clk 0:01:12]} 29. Rc6 {[%clk 0:01:11]}  Rd3 {[%clk 0:00:54]} 30. Kf1 {[%clk 0:00:49]}  Rxa3 {[%clk 0:00:54]} 31. Ke2 {[%clk 0:00:48]}  Ne4 {[%clk 0:00:46]} 32. f4 {[%clk 0:00:35]}  Nc3+ {[%clk 0:00:41]} 33. Kf2 {[%clk 0:00:29]}  Ra2+ {[%clk 0:00:35]} 34. Kf3 {[%clk 0:00:29]}  Ne2 {[%clk 0:00:34]} 35. f5 {[%clk 0:00:25]}  Nd4+ {[%clk 0:00:34]} 36. Ke4 {[%clk 0:00:23]}  gxf5+ {[%clk 0:00:25]} 37. Nxf5+ {[%clk 0:00:22]}  Nxf5 {[%clk 0:00:25]} 38. Kxf5 {[%clk 0:00:21]}  Rxg2 {[%clk 0:00:25]} 39. Rc7 {[%clk 0:00:20]}  Ra2 {[%clk 0:00:21]} 40. Kg5 {[%clk 0:00:19]}  h4 {[%clk 0:00:18]} 41. Kxh4 {[%clk 0:00:19]}  Ra4 {[%clk 0:00:19]} 42. Kg5 {[%clk 0:00:19]}  Rxc4 {[%clk 0:00:19]} 43. Rxa7 {[%clk 0:00:19]}  Rb4 {[%clk 0:00:19]} 44. h4 {[%clk 0:00:16]}  Rxb5 {[%clk 0:00:20]} 45. h5 {[%clk 0:00:17]}  c4+ {[%clk 0:00:20]} 46. Kg4 {[%clk 0:00:17]}  Rc5 {[%clk 0:00:20]} 47. h6+ {[%clk 0:00:15]}  Kxh6 {[%clk 0:00:20]} 48. Rxf7 {[%clk 0:00:15]}  b5 {[%clk 0:00:20]} 49. Kf3 {[%clk 0:00:15]}  Kg6 {[%clk 0:00:20]} 50. Rb7 {[%clk 0:00:15]}  Kf6 {[%clk 0:00:19]} 51. Ke3 {[%clk 0:00:15]}  Ke5 {[%clk 0:00:19]} 52. Kd2 {[%clk 0:00:14]}  Kd4 {[%clk 0:00:18]} 53. Kc2 {[%clk 0:00:14]}  Rh5 {[%clk 0:00:17]} 54. Rd7+ {[%clk 0:00:13]}  Kc5 {[%clk 0:00:17]} 55. Kc3 {[%clk 0:00:11]}  Rh3+ {[%clk 0:00:16]} 56. Kc2 {[%clk 0:00:12]}  Rh2+ {[%clk 0:00:17]} 57. Kc1 {[%clk 0:00:11]}  Kb4 {[%clk 0:00:17]} 58. Rd8 {[%clk 0:00:10]}  c3 {[%clk 0:00:17]} 59. Rb8 {[%clk 0:00:10]}  Kc4 {[%clk 0:00:17]} 60. Kb1 {[%clk 0:00:10]}  b4 {[%clk 0:00:17]} 61. Kc1 {[%clk 0:00:10]}  Kb3 {[%clk 0:00:17]} 62. Kd1 {[%clk 0:00:08]}  Rh1+ {[%clk 0:00:17]} 63. Ke2 {[%clk 0:00:07]}  c2 {[%clk 0:00:15]} 64. Kd3 {[%clk 0:00:05]}  c1=Q {[%clk 0:00:14]} 65. Rxb4+ {[%clk 0:00:02]}  Kxb4 {[%clk 0:00:14]} 66. Ke2 {[%clk 0:00:02]}  Qc3 {[%clk 0:00:12]} 67. Kf2 {[%clk 0:00:02]}  Rh2+ {[%clk 0:00:13]} 68. Kg1 {[%clk 0:00:02]}  Qg3+ {[%clk 0:00:13]} 69. Kf1 {[%clk 0:00:02]}  Qf2# {[%clk 0:00:13]} 0-1


[Site "https://www.chess.com"]